bitfinex-derivatives/quotes_ETHF0:USTF0_20240923
["timestamp","ask_amount","ask_price","bid_price","bid_amount"]
[1727056038030,1.1462,2613.1,2612.4,2.6474]
[1727056038031,1.1462,2613.1,2612.5,0.38278]
[1727056038230,1.7263,2613.1,2612.5,0.95968]
[1727056038460,1.7263,2613.1,2612.6,2.09]
[1727056038632,1.1356,2613.1,2612.7,0.38275]
[1727056038937,1.1356,2613.1,2612.8,2.09]
[1727056039141,0.5801,2613.4,2613.0,2.09]
[1727056039443,3.2078,2613.6,2613.3,2.09]
[1727056039734,0.5605,2613.5,2613.3,2.09]
[1727056039930,3.2078,2613.6,2613.5,0.38264]
[1727056040131,3.2078,2614.3,2613.5,8.09]
[1727056040329,3.2078,2614.3,2613.6,0.38262]
[1727056040539,3.2078,2614.3,2613.7,0.5557]
[1727056040740,3.2078,2614.3,2613.5,2.47263]
[1727056040741,3.2078,2614.3,2613.5,2.09]
[1727056040937,3.2078,2614.3,2613.5,2.47264]
[1727056041133,3.2078,2614.0,2613.5,2.47264]
[1727056041738,0.5942,2613.9,2613.5,2.09]
[1727056041929,0.5942,2613.9,2613.6,0.38262]
[1727056042155,0.5942,2613.9,2613.5,2.47264]
[1727056043143,1.2003,2613.9,2613.5,2.47264]
[1727056043337,1.2003,2613.9,2613.5,2.09]
[1727056043533,1.8015,2613.9,2613.3,2.09]
[1727056043934,1.8015,2613.9,2613.4,0.38265]
[1727056044133,1.8015,2613.9,2613.3,2.47267]
[1727056044336,1.8015,2613.9,2613.4,0.38266]
[1727056044638,1.8015,2613.9,2613.3,2.09]
[1727056044843,1.2003,2613.9,2613.5,2.09]
[1727056045139,1.2003,2613.9,2613.5,2.47263]
[1727056045650,1.2003,2613.9,2613.6,0.38263]
[1727056045946,1.2003,2613.9,2613.5,2.47263]
[1727056046243,1.2003,2613.9,2613.3,0.38267]
[1727056046435,1.2003,2613.9,2613.3,2.09]
[1727056046635,1.2003,2613.9,2613.5,2.09]
[1727056046940,1.2003,2613.9,2613.5,2.47264]
[1727056048042,1.2003,2613.9,2613.6,0.38263]
[1727056048443,1.2003,2613.9,2613.5,2.47264]
[1727056048842,1.2003,2613.9,2613.5,2.09]
[1727056049446,1.2003,2613.9,2613.5,2.47264]
[1727056049841,1.2003,2613.9,2613.5,2.09]
[1727056051945,1.2003,2613.9,2613.5,2.47264]
[1727056052447,1.2003,2613.9,2613.5,2.09]
[1727056052644,2.09,2613.6,2612.6,5.12399925]
[1727056052840,3.2078,2613.2,2612.5,5.2978]
[1727056053047,0.5694,2613.1,2612.5,2.09]
[1727056053439,1.135,2613.1,2612.5,2.09]
[1727056053846,3.2078,2612.9,2612.3,0.6055]
[1727056054044,0.6208,2612.8,2612.2,2.09]
[1727056054247,0.6208,2612.8,2612.3,0.38282]
[1727056054638,0.6208,2612.8,2612.2,2.47283]
[1727056054844,0.6208,2612.8,2612.2,2.09]
[1727056055346,3.2078,2612.6,2612.2,2.09]
[1727056055649,0.6012,2612.5,2612.2,2.09]
[1727056055844,0.6012,2612.5,2612.3,0.38282]
[1727056056044,3.2078,2612.6,2612.2,2.47283]
[1727056056245,3.2078,2612.6,2611.9,0.6055]
[1727056056446,3.2078,2612.6,2611.7,9.2368]
[1727056056447,0.6211,2612.5,2611.7,2.09]
[1727056056647,3.2078,2612.3,2611.7,2.09]
[1727056057541,3.2078,2612.3,2611.7,2.47291]
[1727056058147,3.2078,2612.3,2611.7,0.38291]
[1727056058452,3.2078,2612.3,2611.8,2.55090852]
[1727056060349,3.2078,2612.3,2611.6,2.6847]
[1727056060551,3.2078,2612.3,2611.6,2.09]
[1727056060746,3.2078,2612.3,2611.6,2.47292]
[1727056061351,3.2078,2612.3,2611.6,2.09]
[1727056061662,3.2078,2612.0,2611.3,4.7499]
[1727056061854,1.1636,2611.9,2611.3,5.13285]
[1727056062063,1.1636,2611.9,2611.4,2.09]
[1727056063157,3.2078,2611.7,2611.1,3.8198]
[1727056063554,3.2078,2611.7,2611.1,4.20279]
[1727056063749,3.2078,2611.7,2611.2,2.09]
[1727056063958,3.2078,2611.7,2611.2,2.47297]
[1727056064157,3.2078,2611.7,2611.2,2.09]
[1727056064552,3.2078,2611.7,2611.2,2.47297]
[1727056065361,3.2078,2611.7,2610.6,0.13778472]
[1727056065362,3.2078,2611.3,2610.6,0.13778472]
[1727056065565,3.2078,2611.3,2610.6,2.09]
[1727056065768,0.598,2611.2,2610.6,2.09]
[1727056066066,3.2078,2611.0,2610.5,1.1982]
[1727056066455,3.2078,2610.6,2610.1,3.2078]
[1727056066866,5.2978,2611.0,2610.2,0.38313]
[1727056067060,5.2978,2611.0,2610.4,2.09]
[1727056067061,3.2078,2611.0,2610.4,2.09]
[1727056067657,3.2078,2611.0,2610.2,0.38312]
[1727056068557,3.2078,2611.0,2610.3,0.38311]
[1727056068757,3.2078,2611.0,2610.2,0.38312]
[1727056068958,3.2078,2611.0,2610.1,3.2078]
[1727056069165,3.2078,2611.0,2610.2,0.38312]
[1727056069366,3.2078,2611.0,2610.1,3.2078]
[1727056069570,3.2078,2611.0,2610.3,0.3831]
[1727056069863,0.6045,2611.1,2610.5,0.38308]
[1727056070057,0.6045,2611.1,2610.5,0.38307]
[1727056070257,3.2078,2611.3,2610.4,6.4002]
[1727056070462,3.2078,2611.3,2610.9,0.38301]
[1727056070662,3.2078,2611.3,2611.0,1.1819]
[1727056071160,3.2078,2611.3,2610.1,4.135]
[1727056071161,0.38301,2611.1,2610.1,4.135]
[1727056071461,3.2078,2610.9,2610.1,4.135]
[1727056071762,3.2078,2610.9,2610.2,0.38313]
[1727056072259,3.2078,2610.9,2610.1,4.135]
[1727056072466,3.2078,2610.6,2610.1,4.135]
[1727056072656,0.6097,2610.5,2610.1,4.135]
[1727056075469,0.6097,2610.5,2610.0,1.1819]
[1727056077266,0.6097,2610.5,2609.6,3.2078]
[1727056077267,3.2078,2610.2,2609.6,3.2078]
[1727056077659,3.2078,2610.2,2609.5,1.53803]
[1727056077660,3.2078,2610.2,2609.5,1.1548]
[1727056078255,3.2078,2609.9,2609.5,1.1548]
[1727056079361,3.2078,2609.9,2608.8,5.7878]
[1727056079559,3.2078,2609.6,2609.0,0.3833]
[1727056080369,3.2078,2609.6,2609.0,0.38329]
[1727056080561,3.2078,2609.6,2609.1,0.38329]
[1727056080771,3.2078,2609.6,2609.0,0.38329]
[1727056081572,3.2078,2609.6,2609.2,0.38327]
[1727056081954,1.2065,2609.8,2608.9,1.1695]
[1727056082360,1.2065,2609.8,2609.3,0.38325]
[1727056082559,3.2078,2610.0,2609.8,0.38318]
[1727056082766,3.2078,2610.3,2609.9,0.5992]
[1727056083957,3.2078,2610.3,2609.5,0.5735]
[1727056084165,3.2078,2610.0,2608.9,7.3428]
[1727056084367,3.2078,2609.7,2609.2,0.38327]
[1727056084561,3.2078,2609.7,2609.1,0.5992]
[1727056085068,3.2078,2609.7,2609.2,0.38327]
[1727056085667,3.2078,2609.7,2609.3,0.38326]
[1727056086667,1.2,2609.9,2609.4,3.832]
[1727056086856,1.2,2609.9,2609.3,0.5839]
[1727056087270,3.2078,2610.1,2609.7,0.38319]
[1727056087468,3.2078,2610.1,2609.8,0.38318]
[1727056087769,2.58,2609.9,2609.0,0.3833]
[1727056087970,3.2078,2609.5,2609.0,0.3833]
[1727056088167,3.2078,2609.5,2609.1,0.38329]
[1727056088362,3.2078,2609.5,2609.0,0.3833]
[1727056089069,3.2078,2609.5,2608.9,0.5978]
[1727056089271,3.2078,2609.5,2608.3,3.2078]
[1727056089469,3.2078,2609.2,2608.5,0.38337]
[1727056089667,3.2078,2609.2,2608.3,3.2078]
[1727056089668,0.5696,2609.1,2608.6,0.38336]
[1727056089967,1.169,2609.1,2608.7,0.38335]
[1727056090373,1.169,2609.1,2608.6,0.38335]
[1727056090760,1.169,2609.1,2608.3,3.34245232]
[1727056090959,1.169,2609.1,2608.6,0.38335]
[1727056091379,1.169,2609.1,2608.3,3.34245232]
[1727056091567,3.2078,2609.5,2608.6,3.2078]
[1727056091769,3.2078,2609.5,2608.5,2.58]
[1727056091770,3.2078,2609.5,2608.7,1.1406]
[1727056091972,3.2078,2609.5,2609.3,0.38325]
[1727056092171,1.1921,2609.7,2609.5,0.38322]
[1727056092371,0.594,2609.7,2609.0,0.95826]
[1727056092568,0.594,2609.7,2609.4,0.38324]
[1727056092769,0.594,2609.7,2609.1,3.8186]
[1727056092770,0.594,2609.7,2609.1,0.6108]
[1727056092975,0.594,2609.7,2609.2,0.38327]
[1727056092976,0.5981,2609.6,2609.2,0.38327]
[1727056093173,3.8059,2609.6,2609.1,0.38328]
[1727056093467,3.8059,2609.6,2608.7,2.70975]
[1727056093673,3.8059,2609.6,2609.0,3.2078]
[1727056093871,3.2078,2609.6,2609.5,0.38323]
[1727056094072,2.63272449,2609.6,2609.5,0.38323]
[1727056095271,3.2078,2610.0,2609.6,0.38321]
[1727056095474,3.2078,2610.0,2609.5,0.38322]
[1727056096175,3.2078,2610.0,2609.6,0.38321]
[1727056096375,3.2078,2610.0,2609.4,0.5914]
[1727056096680,0.5858,2610.1,2609.4,3.7992]
[1727056096876,0.5858,2610.1,2609.5,3.2078]
[1727056097072,0.5858,2610.1,2609.4,0.5914]
[1727056097073,0.5858,2610.1,2609.4,0.7305453]
[1727056097375,0.5858,2610.1,2609.4,1.6886353]
[1727056097575,0.5981,2610.2,2610.1,0.38314]
[1727056097778,3.781,2610.5,2610.2,0.38312]
[1727056097976,3.781,2610.5,2609.6,3.2078]
[1727056098280,0.5834,2610.4,2610.0,0.38315]
[1727056099072,0.5834,2610.4,2610.1,0.38314]
[1727056100782,0.5834,2610.4,2609.7,0.5624]
[1727056101383,0.5834,2610.4,2610.1,0.38314]
[1727056103181,0.5834,2610.4,2610.3,0.38311]
[1727056103382,0.5906,2610.7,2610.4,0.38309]
[1727056103591,0.5906,2610.7,2610.0,1.1706]
[1727056103785,0.5906,2610.7,2610.6,0.38307]
[1727056104090,1.1532,2611.0,2610.7,0.38304]
[1727056104287,1.1532,2611.0,2610.7,0.38305]
[1727056104581,1.1532,2611.0,2610.3,4.16559]
[1727056104784,0.5795,2611.0,2610.7,0.38305]
[1727056104986,0.5795,2611.0,2610.3,3.2078]
[1727056105178,3.2078,2610.7,2610.0,0.609]
[1727056105379,0.5752,2610.6,2610.1,0.38313]
[1727056105584,0.5752,2610.6,2610.2,0.38312]
[1727056105879,0.5752,2610.6,2610.1,0.38314]
[1727056106688,0.5752,2610.6,2610.2,0.38312]
[1727056108889,3.2078,2610.4,2609.8,0.38318]
[1727056109090,1.1818,2610.3,2609.8,0.38318]
[1727056110280,1.1818,2610.3,2609.7,0.38319]
[1727056110489,1.1818,2610.3,2609.8,0.38318]
[1727056110795,1.1818,2610.3,2609.7,0.38319]
[1727056112088,1.1818,2610.3,2609.3,1.59649925]
[1727056112089,3.2078,2609.9,2609.3,0.98899925]
[1727056112290,0.5705,2609.8,2609.2,0.38326]
[1727056112486,1.1656,2609.7,2609.0,4.135]
[1727056112692,1.1656,2609.7,2609.2,0.38327]
[1727056112882,1.1656,2609.7,2609.0,4.135]
[1727056113283,1.1656,2609.7,2609.0,5.12399925]
[1727056113490,1.1656,2609.7,2609.0,5.50728925]
[1727056113892,1.1656,2609.7,2609.1,0.38328]
[1727056114188,0.5813,2609.7,2609.1,0.98899925]
[1727056114389,0.5813,2609.7,2609.3,0.38325]
[1727056114783,0.5813,2609.7,2609.1,4.19679925]
[1727056114994,0.5813,2609.7,2609.3,0.38325]
[1727056115584,0.5813,2609.7,2609.1,4.19679925]
[1727056115780,0.5813,2609.7,2609.3,0.38325]
[1727056115985,0.5813,2609.7,2609.1,4.19679925]
[1727056116185,0.5813,2609.7,2609.4,0.38324]
[1727056117993,0.5813,2609.7,2609.1,4.19679925]
[1727056118297,3.2078,2610.2,2609.8,0.38318]
[1727056118494,3.8305,2610.2,2609.9,0.38316]
[1727056118800,0.6227,2610.2,2609.9,0.38317]
[1727056119194,0.6227,2610.2,2609.7,0.98899925]
[1727056119395,0.6227,2610.2,2610.0,0.38316]
[1727056119594,0.6227,2610.2,2609.7,4.19679925]
[1727056119797,0.6227,2610.2,2609.9,0.38317]
[1727056120101,0.6227,2610.2,2610.0,0.38315]
[1727056120694,0.6227,2610.2,2610.1,0.38314]
[1727056121215,0.5811,2610.6,2610.1,13.039]
[1727056121393,0.5811,2610.6,2610.2,1.57082]
[1727056121590,0.5811,2610.6,2610.2,1.1877]
[1727056121896,0.5811,2610.6,2610.3,0.38311]
[1727056122389,3.2078,2610.5,2610.1,0.13920935]
[1727056122588,3.8119,2610.5,2609.8,0.98899925]
[1727056122788,0.5811,2610.6,2610.0,0.98899925]
[1727056123206,0.5811,2610.6,2610.2,0.38311]
[1727056123896,3.7889,2610.6,2609.9,1.37215925]
[1727056124102,3.7889,2610.6,2609.9,0.38316]
[1727056125102,3.7889,2610.6,2610.0,0.38315]
[1727056126403,3.7889,2610.6,2609.8,4.3332901]
[1727056126594,3.7889,2610.6,2610.0,0.38315]
[1727056127099,3.7889,2610.6,2609.8,4.3332901]
[1727056127293,3.7889,2610.6,2610.0,0.38315]
[1727056127494,3.7889,2610.6,2609.8,4.3332901]
[1727056127703,0.5811,2610.6,2610.0,0.98899925]
[1727056128001,3.7881,2610.9,2610.1,4.19679925]
[1727056128203,3.2078,2610.9,2610.5,0.38307]
[1727056128609,3.2078,2610.9,2610.4,0.38309]
[1727056128808,3.2078,2610.9,2610.5,0.6017]
[1727056128998,3.2078,2610.9,2610.1,4.3748]
[1727056128999,0.6219,2610.8,2610.3,0.38311]
[1727056129197,3.2078,2610.6,2610.2,0.38312]
[1727056129501,3.2078,2610.6,2610.4,0.38309]
[1727056129699,1.1837,2611.1,2610.7,0.38304]
[1727056129899,1.8056,2611.1,2610.7,0.38304]
[1727056130106,3.2078,2611.4,2611.0,0.38301]
[1727056130296,3.2078,2611.4,2611.0,0.383]
[1727056130495,3.2078,2611.4,2610.8,0.38304]
[1727056130696,3.2078,2611.4,2610.7,2.75769925]
[1727056130906,3.2078,2611.4,2610.8,0.38303]
[1727056131206,3.2078,2611.4,2610.7,1.7687]
[1727056131599,3.2078,2611.4,2610.9,0.38302]
[1727056131795,3.2078,2611.1,2610.7,0.6017]
[1727056132006,0.6157,2611.0,2610.7,0.6017]
[1727056132199,0.6113,2610.9,2610.7,0.6017]
[1727056133206,3.2078,2611.1,2610.7,0.6017]
[1727056133405,3.8191,2611.4,2611.0,0.383]
[1727056133709,0.6157,2611.6,2610.9,4.19679925]
[1727056133907,0.6157,2611.6,2611.3,0.38296]
[1727056134105,0.6157,2611.6,2611.4,0.6163]
[1727056134410,0.6113,2612.0,2611.4,0.6163]
[1727056134604,0.6113,2612.0,2611.5,0.603]
[1727056135001,0.6113,2612.0,2611.5,0.98593]
[1727056135214,0.6113,2612.0,2611.5,0.603]
[1727056136109,3.8191,2612.0,2611.4,0.6163]
[1727056136405,3.8191,2612.0,2611.5,0.38293]
[1727056136611,0.6113,2612.0,2611.5,0.38294]
[1727056138513,0.6113,2612.0,2611.4,0.99925]
[1727056138715,3.8191,2612.0,2611.5,0.38294]
[1727056138908,3.8191,2612.0,2611.4,0.99924]
[1727056139110,3.8191,2612.0,2611.4,0.6163]
[1727056139411,3.8191,2612.0,2611.4,0.99925]
[1727056139806,0.6113,2612.0,2611.6,0.38292]
[1727056140613,0.6113,2612.0,2611.5,0.38293]
[1727056140807,0.6113,2612.0,2611.4,0.99924]
[1727056141710,0.6113,2612.0,2611.4,0.6163]
[1727056142114,0.6113,2612.0,2611.2,3.2078]
[1727056142115,3.2078,2611.7,2611.2,3.2078]
[1727056142316,3.2078,2611.4,2610.7,0.98654]
[1727056142524,0.6228,2611.3,2610.7,0.98654]
[1727056143217,0.6228,2611.3,2610.8,0.38304]
[1727056143623,0.6228,2611.3,2610.9,0.38302]
[1727056143824,0.6228,2611.3,2610.8,0.38303]
[1727056147514,0.6228,2611.3,2610.9,0.38302]
[1727056148220,0.6228,2611.3,2610.8,0.38303]
[1727056148927,0.6228,2611.3,2610.9,0.38302]
[1727056149315,0.5922,2611.6,2611.1,3.2078]
[1727056149511,3.2078,2612.1,2611.5,0.38294]
[1727056149512,0.5709,2612.0,2611.5,0.38294]
[1727056149721,0.5709,2612.0,2611.2,0.5665]
[1727056149722,1.1257,2612.0,2611.2,0.5665]
[1727056149931,1.1257,2612.0,2611.5,0.38293]
[1727056151129,1.1257,2612.0,2611.6,0.38292]
[1727056151322,1.1257,2612.0,2611.9,0.38288]
[1727056151528,3.2078,2612.4,2611.9,0.38288]
[1727056151825,3.2078,2612.4,2612.1,0.38284]
[1727056152029,3.2078,2612.4,2611.7,3.2078]
[1727056152030,3.2078,2612.4,2612.0,3.2078]
[1727056152325,3.2078,2612.4,2612.3,0.38282]
[1727056152918,3.2078,2612.4,2612.2,0.38283]
[1727056153117,3.2078,2612.4,2612.1,0.572]
[1727056153520,3.2078,2612.4,2612.1,0.95485]
[1727056154026,0.5752,2613.2,2612.3,5.7878]
[1727056154325,3.7997,2613.8,2612.9,0.38273]
[1727056154527,3.7997,2613.8,2612.9,0.572]
[1727056154732,3.7997,2613.8,2613.2,3.59049]
[1727056155225,3.7997,2613.8,2613.1,0.3827]
[1727056155621,3.7997,2613.8,2613.0,0.38271]
[1727056155820,3.7997,2613.8,2613.1,0.3827]
[1727056156330,0.5919,2613.8,2613.1,0.3827]
[1727056156535,0.5919,2613.8,2613.0,0.38271]
[1727056157332,0.5919,2613.8,2613.1,0.38269]
[1727056157534,3.7997,2613.8,2612.9,0.572]
[1727056157828,3.2078,2613.5,2612.5,3.2078]
[1727056158033,1.1242,2613.4,2612.5,3.2078]
[1727056158742,1.1242,2613.4,2612.5,3.59059]
[1727056159038,1.1242,2613.4,2612.6,0.38277]
[1727056159235,1.1242,2613.4,2612.5,3.59058]
[1727056159438,1.1242,2613.4,2612.5,3.2078]
[1727056161634,3.2078,2613.2,2612.3,4.7154]
[1727056161838,3.7042,2613.4,2612.3,0.5804]
[1727056161839,3.2078,2612.9,2612.3,0.5804]
[1727056162030,0.5786,2612.8,2612.3,0.5804]
[1727056162223,0.5728,2612.7,2612.3,0.5804]
[1727056162429,0.5728,2612.7,2612.0,4.7339]
[1727056162629,3.2078,2612.6,2612.0,4.135]
[1727056162825,3.2078,2612.6,2611.9,3.2078]
[1727056163730,3.2078,2612.3,2611.9,3.2078]
[1727056163929,0.5786,2612.2,2611.9,3.2078]
[1727056164731,3.8288,2612.1,2611.9,3.2078]
[1727056164935,3.779,2612.0,2611.3,0.557]
[1727056165140,3.779,2612.0,2611.3,0.93996]
[1727056165336,3.779,2612.0,2611.3,0.557]
[1727056166043,3.779,2612.0,2611.3,0.93996]
[1727056166742,3.779,2612.0,2611.3,0.557]
[1727056166937,3.779,2612.0,2611.6,3.2078]
[1727056167142,3.792,2612.6,2611.9,0.38287]
[1727056167547,3.792,2612.6,2611.7,0.5988]
[1727056167745,3.2078,2612.6,2612.0,3.2078]
[1727056168045,0.95642,2614.1,2612.5,0.38278]
[1727056168046,3.792,2613.2,2612.5,0.38278]
[1727056168239,4.3774,2613.2,2612.4,0.3828]
[1727056168545,4.3774,2613.2,2612.2,3.2078]
[1727056168546,3.2078,2612.9,2612.2,3.59062]
[1727056168742,0.5734,2612.8,2612.2,3.59063]
[1727056168945,0.5734,2612.8,2612.2,0.38283]
[1727056169134,0.5734,2612.8,2612.1,0.5939]
[1727056169444,3.2078,2612.3,2611.6,3.2078]
[1727056169740,0.5734,2612.8,2611.6,3.2078]
[1727056169741,0.5854,2612.2,2611.6,3.2078]
[1727056169944,0.5854,2612.2,2611.8,0.38289]
[1727056170737,0.5854,2612.2,2611.6,3.2078]
[1727056170939,0.5734,2612.8,2612.1,0.38284]
[1727056171145,1.1445,2612.8,2612.0,2.96286]
[1727056171347,3.2078,2612.6,2611.9,3.2078]
[1727056171547,3.2078,2612.6,2611.8,0.38289]
[1727056171740,3.2078,2612.6,2611.7,0.5988]
[1727056172136,3.2078,2612.6,2611.8,3.2078]
[1727056172343,1.1445,2612.8,2612.1,0.38284]
[1727056172546,1.1445,2612.8,2611.8,3.2078]
[1727056172749,3.2078,2612.7,2611.9,0.38287]
[1727056172951,3.2078,2612.7,2612.0,0.38286]
[1727056173641,0.5651,2612.6,2611.9,0.38287]
[1727056173848,3.2078,2612.7,2612.1,0.38284]
[1727056174040,1.1445,2612.8,2612.0,0.38286]
[1727056174441,1.1445,2612.8,2612.2,0.38282]
[1727056174637,3.2078,2612.6,2611.8,3.2078]
[1727056174849,3.2078,2612.6,2612.1,0.38284]
[1727056175041,4.3523,2612.8,2611.8,4.19679925]
[1727056175238,4.3523,2612.8,2611.8,3.2078]
[1727056175239,3.2078,2612.5,2611.8,3.2078]
[1727056175443,3.2078,2612.5,2611.8,3.59069]
[1727056175641,3.2078,2612.5,2611.8,3.2078]
[1727056176239,3.2078,2612.2,2611.6,4.135]
[1727056176453,1.1855,2612.1,2611.6,4.135]
[1727056176955,1.7802,2612.1,2611.6,4.135]
[1727056179449,1.7802,2612.1,2611.5,0.5939]
[1727056179644,1.7802,2612.1,2611.5,0.97683]
[1727056179846,1.7802,2612.1,2611.6,0.38292]
[1727056180044,1.7802,2612.1,2611.5,0.5939]
[1727056180245,1.7802,2612.1,2611.5,0.97682]
[1727056181448,1.7802,2612.1,2611.3,0.98899925]
[1727056181649,3.2078,2611.6,2611.1,3.7685]
[1727056181851,0.5999,2611.5,2611.1,3.2078]
[1727056182149,3.2078,2611.6,2611.2,0.38297]
[1727056183141,3.2078,2611.6,2611.1,0.38299]
[1727056184351,0.5892,2611.5,2611.0,0.383]
[1727056184554,0.5892,2611.5,2611.0,0.38301]
[1727056185556,0.5892,2611.5,2611.1,0.38299]
[1727056186248,3.2078,2611.6,2610.9,1.58159925]
[1727056186454,3.2078,2611.6,2611.0,0.98899925]
[1727056186652,3.2078,2611.6,2611.1,0.5531]
[1727056186854,0.5999,2612.0,2611.4,0.38294]
[1727056187049,0.5999,2612.0,2611.1,6.3409]
[1727056187244,0.5999,2612.0,2611.4,0.38294]
[1727056187453,0.5999,2612.0,2611.5,1.1807]
[1727056189151,0.5999,2612.0,2611.5,1.56363]
[1727056189349,0.5999,2612.0,2611.6,0.38292]
[1727056190656,0.5999,2612.0,2611.5,1.1807]
[1727056191260,0.5999,2612.0,2611.6,0.38291]
[1727056191649,0.5999,2612.0,2611.5,1.56363]
[1727056191851,0.5999,2612.0,2611.5,1.1807]
[1727056192457,0.5999,2612.0,2611.7,0.38291]
[1727056192757,0.5999,2612.0,2611.5,1.56363]
[1727056192959,0.5999,2612.0,2611.7,0.3829]
[1727056193154,0.6072,2612.1,2611.5,3.7607]
[1727056193455,0.6072,2612.1,2611.7,0.3829]
[1727056193956,0.6072,2612.1,2611.8,0.38289]
[1727056194347,0.6072,2612.1,2611.5,1.1807]
[1727056194660,3.815,2612.1,2611.5,1.1807]
[1727056194849,3.815,2612.1,2611.5,1.56362]
[1727056195153,3.815,2612.1,2611.6,0.38292]
[1727056195349,3.815,2612.1,2611.5,1.56363]
[1727056195549,3.815,2612.1,2611.6,0.38292]
[1727056196559,3.815,2612.1,2611.5,1.1807]
[1727056196759,3.815,2612.1,2611.3,0.98899925]
[1727056196760,3.2078,2611.8,2611.0,3.2078]
[1727056196954,0.6072,2612.1,2611.0,3.2078]
[1727056196955,0.5528,2611.7,2611.1,2.58]
[1727056197158,0.5528,2611.7,2611.5,0.38294]
[1727056197455,0.5528,2611.7,2611.4,0.38295]
[1727056198656,0.5528,2611.7,2611.0,0.95751]
[1727056198657,0.5528,2611.7,2611.2,0.38298]
[1727056198857,0.5948,2611.6,2611.0,3.2078]
[1727056199066,1.1563,2611.6,2611.0,3.5908]
[1727056199363,1.1563,2611.6,2611.0,3.2078]
[1727056199747,1.1563,2611.6,2611.0,3.59081]
[1727056200359,1.1563,2611.6,2611.0,3.2078]
[1727056200750,1.1563,2611.6,2611.0,3.59079]
[1727056200957,0.5948,2611.6,2611.1,0.38299]
[1727056201354,0.5948,2611.6,2611.1,2.58]
[1727056201662,0.5528,2611.7,2611.3,0.38296]
[1727056201854,0.5528,2611.7,2611.1,2.58]
[1727056202057,0.5528,2611.7,2611.4,0.38294]
[1727056202951,3.2078,2612.2,2611.6,3.2078]
[1727056203160,3.2078,2612.2,2611.7,0.5753]
[1727056203361,3.2078,2612.2,2611.9,0.38287]
[1727056203566,0.5556,2612.4,2611.7,3.1553]
[1727056203755,3.2078,2612.9,2612.5,0.38278]
[1727056203949,3.2078,2612.9,2612.3,0.38282]
[1727056204255,3.2078,2612.9,2612.4,0.5806]
[1727056205562,3.2078,2612.9,2612.1,0.98921798]
[1727056206064,3.2078,2612.6,2612.2,0.98921798]
[1727056206263,3.2078,2612.9,2612.3,2.74081798]
[1727056206457,3.2078,2612.9,2612.3,2.17931798]
[1727056207655,3.2078,2612.9,2612.2,0.98921798]
[1727056207855,0.6085,2613.0,2612.0,0.5811]
[1727056207856,3.2078,2612.6,2612.0,0.5811]
[1727056208059,0.5569,2612.5,2612.0,1.57031798]
[1727056208264,0.5569,2612.5,2612.0,1.95317798]
[1727056208460,0.5569,2612.5,2612.1,0.98921798]
[1727056208657,0.5569,2612.5,2612.0,1.57031798]
[1727056208854,1.1742,2612.4,2611.9,0.98921798]
[1727056209464,7.0358,2612.3,2611.8,0.98921798]
[1727056209666,7.0358,2612.3,2611.6,0.98921798]
[1727056209869,3.2078,2612.0,2611.5,0.98921798]
[1727056210069,0.5569,2611.9,2611.5,0.98921798]
[1727056210265,0.5583,2611.8,2611.5,0.98921798]
[1727056210866,0.5583,2611.8,2611.3,1.57031798]
[1727056212970,0.5583,2611.8,2611.3,0.5811]
[1727056213362,0.5583,2611.8,2611.3,1.57031798]
[1727056214162,3.2078,2612.3,2611.8,0.38288]
[1727056214364,3.2078,2612.3,2611.9,0.5676]
[1727056214574,0.5924,2612.4,2611.9,0.5676]
[1727056214773,0.5677,2612.6,2612.0,3.2078]
[1727056214774,0.5579,2612.5,2612.0,3.2078]
[1727056214968,0.5677,2612.6,2612.2,0.38283]
[1727056215169,3.2078,2612.8,2612.3,0.6012]
[1727056215570,3.2078,2612.8,2612.0,0.98921798]
[1727056215766,1.1256,2612.7,2611.9,1.93968798]
[1727056215978,1.1256,2612.7,2611.9,1.55681798]
[1727056216273,1.1256,2612.7,2611.9,1.54681798]
[1727056216668,1.1256,2612.7,2611.9,0.5576]
[1727056216865,1.7271,2612.7,2611.9,0.94047]
[1727056217072,1.7271,2612.7,2611.8,1.59041798]
[1727056217262,1.7271,2612.7,2611.8,1.97330798]
[1727056217465,1.7271,2612.7,2611.8,1.59041798]
[1727056217777,1.7271,2612.7,2612.1,0.98921798]
[1727056217978,1.7271,2612.7,2612.0,0.98921798]
[1727056218368,3.2078,2612.5,2612.0,0.98921798]
[1727056218564,3.2078,2612.5,2611.8,1.59041798]
[1727056218974,3.2078,2612.5,2611.7,0.98921798]
[1727056219667,3.2078,2612.5,2611.7,4.19701798]
[1727056220165,3.2078,2612.5,2611.8,0.98921798]
[1727056220365,3.2078,2612.5,2611.7,4.19701798]
[1727056220573,3.2078,2612.5,2612.0,0.98921798]
[1727056220772,3.2078,2612.5,2612.1,0.98921798]
[1727056221179,3.2078,2612.5,2612.0,0.98921798]
[1727056221564,3.2078,2612.5,2611.9,0.98921798]
[1727056222375,3.2078,2612.5,2611.8,0.98921798]
[1727056222887,3.2078,2612.5,2611.9,0.98921798]
[1727056223368,1.7271,2612.7,2611.9,1.37208798]
[1727056223567,1.7271,2612.7,2612.0,0.98921798]
[1727056223987,1.7271,2612.7,2612.2,0.38282]
[1727056224171,1.7271,2612.7,2612.2,1.37204798]
[1727056224571,1.7271,2612.7,2612.2,0.98921798]
[1727056225770,1.7271,2612.7,2612.1,2.15491798]